{"text_format":"1","workbook":"xlsx","n_sheets":4,"sheets":["Establishment details","List","Translations","Validation"],"not_rendered":{"charts":0,"images":1,"macros":1,"external_links":0,"defined_names":28,"comments":0,"pivot_tables":0},"unopened":[],"bounds":{"document_bytes":16777216,"sheet_cells":100000,"rows_first":2000,"rows_last":500,"rows_between":2000,"halvings":0,"cell_chars":16384,"cell_head_chars":4096},"cells_cut":0,"cells_raw":0,"read":"whole","date_system":"1900"}

{"sheet":"Establishment details","index":0,"n_rows":14,"n_cols":4,"rows_kept":14,"cut":false,"hidden":false,"merged":[[0,1,0,4],[16,1,16,4]]}
[null,{"$f":"CONCATENATE(\"Animal use data \",D14)","v":"Animal use data 2022"}]
[]
[]
[null,null,"Country:"]
[]
[null,null,"First name:"]
[]
[null,null,"Last name:"]
[]
[null,null,"Email:"]
[]
[null,null,"Establishment:"]
[]
[null,null,"Reported year:",2022]

{"sheet":"List","index":1,"n_rows":3,"n_cols":32,"rows_kept":3,"cut":false,"hidden":false,"merged":[]}
[]
[]
[{"$f":"Translations!DA2","v":"EU Submission *"},{"$f":"Translations!DB2","v":"Id 1"},{"$f":"Translations!DC2","v":"Id 2"},{"$f":"Translations!DD2","v":"Id 3"},{"$f":"Translations!DE2","v":"Animal Species *"},{"$f":"Translations!DF2","v":"Specify other"},{"$f":"Translations!DG2","v":"Number of Animals *"},{"$f":"Translations!DH2","v":"Re-use *"},{"$f":"Translations!DI2","v":"Place of birth"},{"$f":"Translations!DJ2","v":"NHP Place of birth"},{"$f":"Translations!DW2","v":"NHP Colony type: Self-sustaining colony"},{"$f":"Translations!DK2","v":"NHP Generation"},{"$f":"Translations!DL2","v":"Genetic status *"},{"$f":"Translations!DM2","v":"Creation of a new GA line *"},{"$f":"Translations!DN2","v":"Purpose *"},{"$f":"Translations!DO2","v":"Specify other"},{"$f":"Translations!DP2","v":"Type of legislation"},{"$f":"Translations!DQ2","v":"Specify other"},{"$f":"Translations!DR2","v":"Origin of legislation"},{"$f":"Translations!DS2","v":"Severity *"},{"$f":"Translations!DT2","v":"Custom Severity"},{"$f":"Translations!DU2","v":"Explanation of warnings"},{"$f":"Translations!DV2","v":"Comments"},{"$f":"Translations!DX2","v":"Method of tissue sampling"},{"$f":"Translations!DY2","v":"Specify other method"},{"$f":"Translations!EF2","v":"Severity of genotyping"},{"$f":"Translations!DZ2","v":"Field 1"},{"$f":"Translations!EA2","v":"Field 2"},{"$f":"Translations!EB2","v":"Field 3"},{"$f":"Translations!EC2","v":"Field 4"},{"$f":"Translations!ED2","v":"Field 5"},{"$f":"Translations!EE2","v":"Field 6"}]

{"sheet":"Translations","index":2,"n_rows":96,"n_cols":136,"rows_kept":96,"cut":false,"hidden":true,"merged":[[2,104,2,106],[2,108,2,109]]}
[null,"Combined Purposes",null,null,null,null,null,null,null,"Code","Type of animal",null,"Code + Type",null,null,null,null,null,null,"Countries",null,null,"Origin of legislation ",null,null,null,null,null,null,"Type of legislation",null,null,null,null,null,null,null,"Severity",null,null,null,"Y/N",null,"Place of birth",null,null,null,null,null,null,"Non-human primate - source",null,null,null,null,null,null,"Non-human primate - generation",null,null,null,"Genetic status",null,null,null,null,null,null,"Reporting Years",null,null,"Level 1","Basic Research","Translational and Applied Research","Regulatory use and routine production"," ","Quality control (including batch safety and potency testing)","Routine production by product type","Toxicity and other safety testing including pharmacology",null,"Acute toxicity testing methods","Repeated dose toxicity","Ecotoxicity","Methods of tissue sampling",null,null,null,null,null,null,"Field 1 dropdown values","Field 2 dropdown values","Field 3 dropdown values","Field 4 dropdown values","Field 5 dropdown values","Field 6 dropdown values","Id1 Dropdown values","Id2 Dropdown values","Id3 Dropdown values","Other Species Dropdown values","Other Purpose Dropdown values","Other Legislation Dropdown values","Custom severity Dropdown values",null,"Table Headers"]
[{"$f":"MID(B2,1,6)","v":"[PB1] "},"[PB1] (Basic Research) Oncology",null,null,null,null,null,null,null,"A1","Mice (Mus musculus)",null,{"$f":"CONCATENATE(\"[\",J2,\"] \",K2)","v":"[A1] Mice (Mus musculus)"},null,null,null,null,null,null,"Austria",null,null,"[LO1] Legislation satisfying Union requirements",null,null,null,null,null,null,"[LT1] Legislation on medicinal products for human use",null,null,null,null,null,null,null,"[SV1] Non-recovery",null,null,null,"[N] No",null,"[O1] Animals born at an authorised breeder in the Union",null,null,null,null,null,null,"[NHPO1] NHP born at an authorised breeder in the Union",null,null,null,null,null,null,"[NHPG1] F0",null,null,null,"[GS1] Not genetically altered",null,null,null,null,null,null,2021,null,null,"Basic research","[PB1] Oncology","[PT21] Human Cancer","Quality control (including batch safety and potency testing)"," ","[PR61] Batch safety testing","[PR51] Blood based products","Acute (single dose) toxicity testing methods (including limit test)",null,"[PR81] LD50, LC50","[PR87] 28 days or less","[PR98] Acute toxicity (ecotoxicity)","[IG1] Invasive genotyping: blood sampling",null,null,null,null,null,null,null,null,null,null,null,null,{"$f":"\"LA1230177\"","v":"LA1230177"},null,"BXL",null,null,null,null,null,"EU Submission *","Id 1","Id 2","Id 3","Animal Species *","Specify other","Number of Animals *","Re-use *","Place of birth","NHP Place of birth","NHP Generation","Genetic status *","Creation of a new GA line *","Purpose *","Specify other","Type of legislation","Specify other","Origin of legislation","Severity *","Custom Severity","Explanation of warnings","Comments","NHP Colony type: Self-sustaining colony","Method of tissue sampling","Specify other method","Field 1","Field 2","Field 3","Field 4","Field 5","Field 6","Severity of genotyping"]
["[PB2] ","[PB2] (Basic Research) Cardiovascular Blood and Lymphatic System",null,null,null,null,null,null,null,"A2","Rats (Rattus norvegicus)",null,"[A2] Rats (Rattus norvegicus)",null,null,null,null,null,null,"Belgium",null,null,"[LO2] Legislation satisfying national requirements only (within Union)",null,null,null,null,null,null,"[LT2] Legislation on medicinal products for veterinary use and their residues",null,null,null,null,null,null,null,"[SV2] Mild [up to and including]",null,null,null,"[Y] Yes",null,"[O2] Animals born in the Union but not at an authorised breeder",null,null,null,null,null,null,"[NHPO2] NHP born in the Union but not at an authorised breeder, and NHP born in rest of Europe",null,null,null,null,null,null,"[NHPG2] F1",null,null,null,"[GS2] Genetically altered without a harmful phenotype",null,null,null,null,null,null,2022,null,null,"Translational and applied research","[PB2] Cardiovascular Blood and Lymphatic System","[PT22] Human Infectious Disorders","[PR71] Other efficacy and tolerance testing"," ","[PR62] Pyrogenicity testing","[PR52] Monoclonal antibodies by ascites method only","[PR84] Skin irritation/corrosion",null,"[PR82] Other lethal methods","[PR88] 29 - 90 days","[PR99] Chronic toxicity (ecotoxicity)","[IG2] Invasive genotyping: ear biopsy",null,null,null,null,null,null,null,null,null,null,null,null,{"$f":"\"LA1230210\"","v":"LA1230210"},null,"VLA",null,null,null,null,null,"Specific userform1 translations",null,null,null,"Specific userform1 translations"]
["[PB3] ","[PB3] (Basic Research) Nervous System",null,null,null,null,null,null,null,"A3","Guinea-Pigs (Cavia porcellus)",null,"[A3] Guinea-Pigs (Cavia porcellus)",null,null,null,null,null,null,"Bulgaria",null,null,"[LO3] Legislation satisfying Non-Union requirements only",null,null,null,null,null,null,"[LT3] Medical devices legislation",null,null,null,null,null,null,null,"[SV3] Moderate",null,null,null,null,null,"[O3] Animals born in rest of Europe",null,null,null,null,null,null,"[NHPO3] NHP born in Asia",null,null,null,null,null,null,"[NHPG3] F2 or greater",null,null,null,"[GS3] Genetically altered with a harmful phenotype",null,null,null,null,null,null,2023,null,null,"Regulatory use and routine production","[PB3] Nervous System","[PT23] Human Cardiovascular Disorders","Toxicity and other safety testing including pharmacology"," ","[PR63] Batch potency testing","[PR54] Monoclonal and polyclonal antibodies (excluding ascites method)","[PR85] Skin sensitisation",null,"[PR83] Non lethal methods","[PR89] more than 90 days","[PR100] Reproductive toxicity (ecotoxicity)","[IG3] Invasive genotyping: tail biopsy",null,null,null,null,null,null,null,null,null,null,null,null,{"$f":"\"LA1230212\"","v":"LA1230212"},null,"WAL",null,null,null,null,null,"Previous",null,null,null,"Primary Purpose (Level 1):"]
["[PB4] ","[PB4] (Basic Research) Respiratory System",null,null,null,null,null,null,null,"A4","Hamsters (Syrian) (Mesocricetus auratus)",null,"[A4] Hamsters (Syrian) (Mesocricetus auratus)",null,null,null,null,null,null,"Croatia",null,null,null,null,null,null,null,null,null,"[LT4] Industrial chemicals legislation",null,null,null,null,null,null,null,"[SV4] Severe",null,null,null,null,null,"[O4] Animals born elsewhere",null,null,null,null,null,null,"[NHPO4] NHP born in America",null,null,null,null,null,null,null,null,null,null,null,null,null,null,null,null,null,2024,null,null,"[PE40] Protection of the natural environment in the interests of the health or welfare of human beings or animals","[PB4] Respiratory System","[PT24] Human Nervous and Mental Disorders","Routine production by product type"," ","[PR64] Other quality controls","[PR53] Other products","[PR86] Eye irritation/corrosion",null,null,null,"[PR101] Endocrine activity (ecotoxicity)","[IG6] Invasive genotyping: fin biopsy",null,null,null,null,null,null,null,null,null,null,null,null,{"$f":"\"LA1230213\"","v":"LA1230213"},null,null,null,null,null,null,null,"Current Row",null,null,null,"Purpose Level 2:"]
["[PB5] ","[PB5] (Basic Research) Gastrointestinal System including Liver",null,null,null,null,null,null,null,"A5","Hamsters (Chinese) (Cricetulus griseus)",null,"[A5] Hamsters (Chinese) (Cricetulus griseus)",null,null,null,null,null,null,"Cyprus",null,null,null,null,null,null,null,null,null,"[LT5] Plant protection product legislation",null,null,null,null,null,null,null,null,null,null,null,null,null,null,null,null,null,null,null,null,"[NHPO5] NHP born in Africa",null,null,null,null,null,null,null,null,null,null,null,null,null,null,null,null,null,2025,null,null,"[PS41] Preservation of species","[PB5] Gastrointestinal System including Liver","[PT25] Human Respiratory Disorders",null,null,null,null,"Repeated dose toxicity",null,null,null,"[PR102] Bioaccumulation (ecotoxicity)","[IG4] Invasive genotyping: toe clipping",null,null,null,null,null,null,null,null,null,null,null,null,{"$f":"\"LA1230214\"","v":"LA1230214"},null,null,null,null,null,null,null,"Go!",null,null,null,"Purpose Level 3:"]
["[PB6] ","[PB6] (Basic Research) Musculoskeletal System",null,null,null,null,null,null,null,"A6","Mongolian gerbil (Meriones unguiculatus)",null,"[A6] Mongolian gerbil (Meriones unguiculatus)",null,null,null,null,null,null,"Czech Republic",null,null,null,null,null,null,null,null,null,"[LT6] Biocides legislation",null,null,null,null,null,null,null,null,null,null,null,null,null,null,null,null,null,null,null,null,"[NHPO6] NHP born elsewhere",null,null,null,null,null,null,null,null,null,null,null,null,null,null,null,null,null,2026,null,null,"[PE42-1] Higher education","[PB6] Musculoskeletal System","[PT26] Human Gastrointestinal Disorders including Liver",null,null,null,null,"[PR90] Carcinogenicity",null,null,null,"[PR103] Other ecotoxicity","[IG5] Invasive genotyping: other",null,null,null,null,null,null,null,null,null,null,null,null,{"$f":"\"LA1230216\"","v":"LA1230216"},null,null,null,null,null,null,null,"Next",null,null,null,"Purpose Level 4:"]
["[PB7] ","[PB7] (Basic Research) Immune System",null,null,null,null,null,null,null,"A7","Other rodents (other Rodentia)",null,"[A7] Other rodents (other Rodentia)",null,null,null,null,null,null,"Denmark",null,null,null,null,null,null,null,null,null,"[LT7] Food legislation including food contact material",null,null,null,null,null,null,null,null,null,null,null,null,null,null,null,null,null,null,null,null,null,null,null,null,null,null,null,null,null,null,null,null,null,null,null,null,null,null,2027,null,null,"[PE42-2] Training for the acquisition, maintenance or improvement of vocational skills","[PB7] Immune System","[PT27] Human Musculoskeletal Disorders",null,null,null,null,"[PR91] Genotoxicity",null,null,null,null,"[ST1] Surplus tissue from the marking of an animal via ear punch",null,null,null,null,null,null,null,null,null,null,null,null,{"$f":"\"LA1210220\"","v":"LA1210220"},null,null,null,null,null,null,null,"Save",null,null,null,"Select"]
["[PB8] ","[PB8] (Basic Research) Urogenital/Reproductive System",null,null,null,null,null,null,null,"A8","Rabbits (Oryctolagus cuniculus)",null,"[A8] Rabbits (Oryctolagus cuniculus)",null,null,null,null,null,null,"Estonia",null,null,null,null,null,null,null,null,null,"[LT8] Feed legislation including legislation for the safety of target animals, workers and environment",null,null,null,null,null,null,null,null,null,null,null,null,null,null,null,null,null,null,null,null,null,null,null,null,null,null,null,null,null,null,null,null,null,null,null,null,null,null,2028,null,null,"[PF43] Forensic enquiries","[PB8] Urogenital/Reproductive System","[PT28] Human Immune Disorders",null,null,null,null,"[PR92] Reproductive toxicity",null,null,null,null,"[ST2] Surplus tissue from the marking of an animal via toe clipping",null,null,null,null,null,null,null,null,null,null,null,null,{"$f":"\"LA1230270\"","v":"LA1230270"},null,null,null,null,null,null,null,"Save & Duplicate",null,null,null,"Purpose Selection"]
["[PB9] ","[PB9] (Basic Research) Sensory Organs (skin, eyes and ears)",null,null,null,null,null,null,null,"A9","Cats (Felis catus)",null,"[A9] Cats (Felis catus)",null,null,null,null,null,null,"Finland",null,null,null,null,null,null,null,null,null,"[LT9] Cosmetics legislation",null,null,null,null,null,null,null,null,null,null,null,null,null,null,null,null,null,null,null,null,null,null,null,null,null,null,null,null,null,null,null,null,null,null,null,null,null,null,2029,null,null,"[PG43] Maintenance of colonies of established genetically altered animals, not used in other procedures","[PB9] Sensory Organs (skin, eyes and ears)","[PT29] Human Urogenital/Reproductive Disorders",null,null,null,null,"[PR93] Developmental toxicity",null,null,null,null,"[NG1] Non-invasive genotyping: hair sampling",null,null,null,null,null,null,null,null,null,null,null,null,{"$f":"\"LA1230272\"","v":"LA1230272"},null,null,null,null,null,null,null,"Cancel"]
["[PB10]","[PB10] (Basic Research) Endocrine System/Metabolism",null,null,null,null,null,null,null,"A10","Dogs (Canis familiaris)",null,"[A10] Dogs (Canis familiaris)",null,null,null,null,null,null,"France",null,null,null,null,null,null,null,null,null,"[LT10] Other legislation",null,null,null,null,null,null,null,null,null,null,null,null,null,null,null,null,null,null,null,null,null,null,null,null,null,null,null,null,null,null,null,null,null,null,null,null,null,null,2030,null,null,null,"[PB10] Endocrine System/Metabolism","[PT30] Human Sensory Organ Disorders (skin, eyes and ears)",null,null,null,null,"[PR94] Neurotoxicity",null,null,null,null,"[NG2] Non-invasive genotyping: observation under special lighting",null,null,null,null,null,null,null,null,null,null,null,null,{"$f":"\"LA1230274\"","v":"LA1230274"},null,null,null,null,null,null,null,"Row Content"]
[{"$f":"MID(B12,1,6)","v":"[PB14]"},"[PB14] (Basic Research) Developmental Biology",null,null,null,null,null,null,null,"A11","Ferrets (Mustela putorius furo)",null,"[A11] Ferrets (Mustela putorius furo)",null,null,null,null,null,null,"Germany",null,null,null,null,null,null,null,null,null,null,null,null,null,null,null,null,null,null,null,null,null,null,null,null,null,null,null,null,null,null,null,null,null,null,null,null,null,null,null,null,null,null,null,null,null,null,null,null,2031,null,null,null,"[PB14] Developmental Biology","[PT31] Human Endocrine/Metabolism Disorders",null,null,null,null,"[PR95] Kinetics (pharmacokinetics, toxicokinetics, residue depletion)",null,null,null,null,"[NG3] Non-invasive genotyping: post mortem",null,null,null,null,null,null,null,null,null,null,null,null,{"$f":"\"LA1230275\"","v":"LA1230275"},null,null,null,null,null,null,null,"Animal Use Details Form"]
["[PB11]","[PB11] (Basic Research) Multisystemic",null,null,null,null,null,null,null,"A12","Other carnivores (other Carnivora)",null,"[A12] Other carnivores (other Carnivora)",null,null,null,null,null,null,"Greece",null,null,null,null,null,null,null,null,null,null,null,null,null,null,null,null,null,null,null,null,null,null,null,null,null,null,null,null,null,null,null,null,null,null,null,null,null,null,null,null,null,null,null,null,null,null,null,null,2032,null,null,null,"[PB11] Multisystemic","[PT32] Other Human Disorders",null,null,null,null,"[PR96] Pharmaco-dynamics (including safety pharmacology)",null,null,null,null,"[NG4] Non-invasive genotyping: other",null,null,null,null,null,null,null,null,null,null,null,null,{"$f":"\"LA1230277\"","v":"LA1230277"},null,null,null,null,null,null,null,"Browse"]
["[PB12]","[PB12] (Basic Research) Ethology / Animal Behaviour /Animal Biology",null,null,null,null,null,null,null,"A13","Horses, donkeys and cross-breeds (Equidae)",null,"[A13] Horses, donkeys and cross-breeds (Equidae)",null,null,null,null,null,null,"Hungary",null,null,null,null,null,null,null,null,null,null,null,null,null,null,null,null,null,null,null,null,null,null,null,null,null,null,null,null,null,null,null,null,null,null,null,null,null,null,null,null,null,null,null,null,null,null,null,null,2033,null,null,null,"[PB12] Ethology / Animal Behaviour /Animal Biology","[PT33] Animal Diseases and Disorders",null,null,null,null,"[PR97] Phototoxicity",null,null,null,null,null,null,null,null,null,null,null,null,null,null,null,null,null,{"$f":"\"LA1230278\"","v":"LA1230278"}]
["[PB13]","[PB13] (Basic Research) Other",null,null,null,null,null,null,null,"A14","Pigs (Sus scrofa domesticus)",null,"[A14] Pigs (Sus scrofa domesticus)",null,null,null,null,null,null,"Ireland",null,null,null,null,null,null,null,null,null,null,null,null,null,null,null,null,null,null,null,null,null,null,null,null,null,null,null,null,null,null,null,null,null,null,null,null,null,null,null,null,null,null,null,null,null,null,null,null,null,null,null,null,"[PB13] Other","[PT38] Animal Nutrition",null,null,null,null,"Ecotoxicity",null,null,null,null,null,null,null,null,null,null,null,null,null,null,null,null,null,{"$f":"\"LA1230281\"","v":"LA1230281"}]
["[PT21]","[PT21] (Trans/Appl Research) Human Cancer",null,null,null,null,null,null,null,"A15","Goats (Capra aegagrus hircus)",null,"[A15] Goats (Capra aegagrus hircus)",null,null,null,null,null,null,"Italy",null,null,null,null,null,null,null,null,null,null,null,null,null,null,null,null,null,null,null,null,null,null,null,null,null,null,null,null,null,null,null,null,null,null,null,null,null,null,null,null,null,null,null,null,null,null,null,null,null,null,null,null,null,"[PT34] Animal Welfare",null,null,null,null,"[PR104] Safety testing in food and feed area",null,null,null,null,null,null,null,null,null,null,null,null,null,null,null,null,null,{"$f":"\"LA1230286\"","v":"LA1230286"}]
["[PT22]","[PT22] (Trans/Appl Research) Human Infectious Disorders",null,null,null,null,null,null,null,"A16","Sheep (Ovis aries)",null,"[A16] Sheep (Ovis aries)",null,null,null,null,null,null,"Latvia",null,null,null,null,null,null,null,null,null,null,null,null,null,null,null,null,null,null,null,null,null,null,null,null,null,null,null,null,null,null,null,null,null,null,null,null,null,null,null,null,null,null,null,null,null,null,null,null,null,null,null,null,null,"[PT35] Diagnosis of diseases",null,null,null,null,"[PR105] Target animal safety",null,null,null,null,null,null,null,null,null,null,null,null,null,null,null,null,null,{"$f":"\"LA1230287\"","v":"LA1230287"}]
["[PT23]","[PT23] (Trans/Appl Research) Human Cardiovascular Disorders",null,null,null,null,null,null,null,"A17","Cattle (Bos taurus)",null,"[A17] Cattle (Bos taurus)",null,null,null,null,null,null,"Lithuania",null,null,null,null,null,null,null,null,null,null,null,null,null,null,null,null,null,null,null,null,null,null,null,null,null,null,null,null,null,null,null,null,null,null,null,null,null,null,null,null,null,null,null,null,null,null,null,null,null,null,null,null,null,"[PT36] Plant diseases",null,null,null,null,"[PR107] Combined end-points",null,null,null,null,null,null,null,null,null,null,null,null,null,null,null,null,null,{"$f":"\"LA1230289\"","v":"LA1230289"}]
["[PT24]","[PT24] (Trans/Appl Research) Human Nervous and Mental Disorders",null,null,null,null,null,null,null,"A18","Prosimians (Prosimia)",null,"[A18] Prosimians (Prosimia)",null,null,null,null,null,null,"Luxembourg",null,null,null,null,null,null,null,null,null,null,null,null,null,null,null,null,null,null,null,null,null,null,null,null,null,null,null,null,null,null,null,null,null,null,null,null,null,null,null,null,null,null,null,null,null,null,null,null,null,null,null,null,null,"[PT37] Non-regulatory toxicology and ecotoxicology",null,null,null,null,"[PR106] Other toxicity or safety testing",null,null,null,null,null,null,null,null,null,null,null,null,null,null,null,null,null,{"$f":"\"LA1230292\"","v":"LA1230292"}]
["[PT25]","[PT25] (Trans/Appl Research) Human Respiratory Disorders",null,null,null,null,null,null,null,"A19","Marmoset and tamarins (eg. Callithrix jacchus)",null,"[A19] Marmoset and tamarins (eg. Callithrix jacchus)",null,null,null,null,null,null,"Malta",null,null,null,null,null,null,null,null,null,null,null,null,null,null,null,null,null,null,null,null,null,null,null,null,null,null,null,null,null,null,null,null,null,null,null,null,null,null,null,null,null,null,null,null,null,null,null,null,null,null,null,null,null,null,null,null,null,null,null,null,null,null,null,null,null,null,null,null,null,null,null,null,null,null,null,null,{"$f":"\"LA1230296\"","v":"LA1230296"}]
["[PT26]","[PT26] (Trans/Appl Research) Human Gastrointestinal Disorders including Liver",null,null,null,null,null,null,null,"A20","Cynomolgus monkey (Macaca fascicularis)",null,"[A20] Cynomolgus monkey (Macaca fascicularis)",null,null,null,null,null,null,"Netherlands",null,null,null,null,null,null,null,null,null,null,null,null,null,null,null,null,null,null,null,null,null,null,null,null,null,null,null,null,null,null,null,null,null,null,null,null,null,null,null,null,null,null,null,null,null,null,null,null,null,null,null,null,null,null,null,null,null,null,null,null,null,null,null,null,null,null,null,null,null,null,null,null,null,null,null,null,{"$f":"\"LA1230297\"","v":"LA1230297"}]
["[PT27]","[PT27] (Trans/Appl Research) Human Musculoskeletal Disorders",null,null,null,null,null,null,null,"A21","Rhesus monkey (Macaca mulatta)",null,"[A21] Rhesus monkey (Macaca mulatta)",null,null,null,null,null,null,"Poland",null,null,null,null,null,null,null,null,null,null,null,null,null,null,null,null,null,null,null,null,null,null,null,null,null,null,null,null,null,null,null,null,null,null,null,null,null,null,null,null,null,null,null,null,null,null,null,null,null,null,null,null,null,null,null,null,null,null,null,null,null,null,null,null,null,null,null,null,null,null,null,null,null,null,null,null,{"$f":"\"LA1230298\"","v":"LA1230298"}]
["[PT28]","[PT28] (Trans/Appl Research) Human Immune Disorders",null,null,null,null,null,null,null,"A22","Vervets (Chlorocebus spp.) (usually either pygerythrus or sabaeus)",null,"[A22] Vervets (Chlorocebus spp.) (usually either pygerythrus or sabaeus)",null,null,null,null,null,null,"Portugal",null,null,null,null,null,null,null,null,null,null,null,null,null,null,null,null,null,null,null,null,null,null,null,null,null,null,null,null,null,null,null,null,null,null,null,null,null,null,null,null,null,null,null,null,null,null,null,null,null,null,null,null,null,null,null,null,null,null,null,null,null,null,null,null,null,null,null,null,null,null,null,null,null,null,null,null,{"$f":"\"LA1230308\"","v":"LA1230308"}]
["[PT29]","[PT29] (Trans/Appl Research) Human Urogenital/Reproductive Disorders",null,null,null,null,null,null,null,"A23","Baboons (Papio spp.)",null,"[A23] Baboons (Papio spp.)",null,null,null,null,null,null,"Romania",null,null,null,null,null,null,null,null,null,null,null,null,null,null,null,null,null,null,null,null,null,null,null,null,null,null,null,null,null,null,null,null,null,null,null,null,null,null,null,null,null,null,null,null,null,null,null,null,null,null,null,null,null,null,null,null,null,null,null,null,null,null,null,null,null,null,null,null,null,null,null,null,null,null,null,null,{"$f":"\"LA1230312\"","v":"LA1230312"}]
["[PT30]","[PT30] (Trans/Appl Research) Human Sensory Organ Disorders (skin, eyes and ears)",null,null,null,null,null,null,null,"A24","Squirrel monkey (eg. Saimiri sciureus)",null,"[A24] Squirrel monkey (eg. Saimiri sciureus)",null,null,null,null,null,null,"Slovakia",null,null,null,null,null,null,null,null,null,null,null,null,null,null,null,null,null,null,null,null,null,null,null,null,null,null,null,null,null,null,null,null,null,null,null,null,null,null,null,null,null,null,null,null,null,null,null,null,null,null,null,null,null,null,null,null,null,null,null,null,null,null,null,null,null,null,null,null,null,null,null,null,null,null,null,null,{"$f":"\"LA1230314\"","v":"LA1230314"}]
["[PT31]","[PT31] (Trans/Appl Research) Human Endocrine/Metabolism Disorders",null,null,null,null,null,null,null,"A25-1","Other species of Old World monkeys (other species of Cercopithecoidea)",null,"[A25-1] Other species of Old World monkeys (other species of Cercopithecoidea)",null,null,null,null,null,null,"Slovenia",null,null,null,null,null,null,null,null,null,null,null,null,null,null,null,null,null,null,null,null,null,null,null,null,null,null,null,null,null,null,null,null,null,null,null,null,null,null,null,null,null,null,null,null,null,null,null,null,null,null,null,null,null,null,null,null,null,null,null,null,null,null,null,null,null,null,null,null,null,null,null,null,null,null,null,null,{"$f":"\"LA1230316\"","v":"LA1230316"}]
["[PT32]","[PT32] (Trans/Appl Research) Other Human Disorders",null,null,null,null,null,null,null,"A25-2","Other species of New World monkeys (other species of Ceboidea)",null,{"$f":"CONCATENATE(\"[\",J27,\"] \",K27)","v":"[A25-2] Other species of New World monkeys (other species of Ceboidea)"},null,null,null,null,null,null,"Spain",null,null,null,null,null,null,null,null,null,null,null,null,null,null,null,null,null,null,null,null,null,null,null,null,null,null,null,null,null,null,null,null,null,null,null,null,null,null,null,null,null,null,null,null,null,null,null,null,null,null,null,null,null,null,null,null,null,null,null,null,null,null,null,null,null,null,null,null,null,null,null,null,null,null,null,null,{"$f":"\"LA1230321\"","v":"LA1230321"}]
["[PT33]","[PT33] (Trans/Appl Research) Animal Diseases and Disorders",null,null,null,null,null,null,null,"A26","Apes (Hominoidea)",null,"[A26] Apes (Hominoidea)",null,null,null,null,null,null,"Sweden",null,null,null,null,null,null,null,null,null,null,null,null,null,null,null,null,null,null,null,null,null,null,null,null,null,null,null,null,null,null,null,null,null,null,null,null,null,null,null,null,null,null,null,null,null,null,null,null,null,null,null,null,null,null,null,null,null,null,null,null,null,null,null,null,null,null,null,null,null,null,null,null,null,null,null,null,{"$f":"\"LA1230352\"","v":"LA1230352"}]
[{"$f":"MID(B29,1,6)","v":"[PT38]"},"[PT38] (Trans/Appl Research) Animal Nutrition",null,null,null,null,null,null,null,"A27","Other mammals (other Mammalia)",null,"[A27] Other mammals (other Mammalia)",null,null,null,null,null,null,"United Kingdom",null,null,null,null,null,null,null,null,null,null,null,null,null,null,null,null,null,null,null,null,null,null,null,null,null,null,null,null,null,null,null,null,null,null,null,null,null,null,null,null,null,null,null,null,null,null,null,null,null,null,null,null,null,null,null,null,null,null,null,null,null,null,null,null,null,null,null,null,null,null,null,null,null,null,null,null,{"$f":"\"LA2230389\"","v":"LA2230389"}]
["[PT34]","[PT34] (Trans/Appl Research) Animal Welfare",null,null,null,null,null,null,null,"A28","Domestic fowl (Gallus gallus domesticus)",null,"[A28] Domestic fowl (Gallus gallus domesticus)",null,null,null,null,null,null," ",null,null,null,null,null,null,null,null,null,null,null,null,null,null,null,null,null,null,null,null,null,null,null,null,null,null,null,null,null,null,null,null,null,null,null,null,null,null,null,null,null,null,null,null,null,null,null,null,null,null,null,null,null,null,null,null,null,null,null,null,null,null,null,null,null,null,null,null,null,null,null,null,null,null,null,null,{"$f":"\"LA2230394\"","v":"LA2230394"}]
["[PT35]","[PT35] (Trans/Appl Research) Diagnosis of diseases",null,null,null,null,null,null,null,"A37","Turkey (Meleagris gallopavo)",null,"[A37] Turkey (Meleagris gallopavo)",null,null,null,null,null,null," ",null,null,null,null,null,null,null,null,null,null,null,null,null,null,null,null,null,null,null,null,null,null,null,null,null,null,null,null,null,null,null,null,null,null,null,null,null,null,null,null,null,null,null,null,null,null,null,null,null,null,null,null,null,null,null,null,null,null,null,null,null,null,null,null,null,null,null,null,null,null,null,null,null,null,null,null,{"$f":"\"LA2230395\"","v":"LA2230395"}]
["[PT36]","[PT36] (Trans/Appl Research) Plant diseases",null,null,null,null,null,null,null,"A29","Other birds (other Aves)",null,"[A29] Other birds (other Aves)",null,null,null,null,null,null," ",null,null,null,null,null,null,null,null,null,null,null,null,null,null,null,null,null,null,null,null,null,null,null,null,null,null,null,null,null,null,null,null,null,null,null,null,null,null,null,null,null,null,null,null,null,null,null,null,null,null,null,null,null,null,null,null,null,null,null,null,null,null,null,null,null,null,null,null,null,null,null,null,null,null,null,null,{"$f":"\"LA2230396\"","v":"LA2230396"}]
["[PT37]","[PT37] (Trans/Appl Research) Non-regulatory toxicology and ecotoxicology",null,null,null,null,null,null,null,"A30","Reptiles (Reptilia)",null,"[A30] Reptiles (Reptilia)",null,null,null,null,null,null," ",null,null,null,null,null,null,null,null,null,null,null,null,null,null,null,null,null,null,null,null,null,null,null,null,null,null,null,null,null,null,null,null,null,null,null,null,null,null,null,null,null,null,null,null,null,null,null,null,null,null,null,null,null,null,null,null,null,null,null,null,null,null,null,null,null,null,null,null,null,null,null,null,null,null,null,null,{"$f":"\"LA2230397\"","v":"LA2230397"}]
["[PE40]","[PE40] Protection of the natural environment in the interests of the health or welfare of human beings or animals",null,null,null,null,null,null,null,"A31","Rana (Rana temporaria and Rana pipiens)",null,"[A31] Rana (Rana temporaria and Rana pipiens)",null,null,null,null,null,null," ",null,null,null,null,null,null,null,null,null,null,null,null,null,null,null,null,null,null,null,null,null,null,null,null,null,null,null,null,null,null,null,null,null,null,null,null,null,null,null,null,null,null,null,null,null,null,null,null,null,null,null,null,null,null,null,null,null,null,null,null,null,null,null,null,null,null,null,null,null,null,null,null,null,null,null,null,{"$f":"\"LA1230406\"","v":"LA1230406"}]
["[PS41]","[PS41] Preservation of species",null,null,null,null,null,null,null,"A32","Xenopus (Xenopus laevis and Xenopus tropicalis)",null,"[A32] Xenopus (Xenopus laevis and Xenopus tropicalis)",null,null,null,null,null,null," ",null,null,null,null,null,null,null,null,null,null,null,null,null,null,null,null,null,null,null,null,null,null,null,null,null,null,null,null,null,null,null,null,null,null,null,null,null,null,null,null,null,null,null,null,null,null,null,null,null,null,null,null,null,null,null,null,null,null,null,null,null,null,null,null,null,null,null,null,null,null,null,null,null,null,null,null,{"$f":"\"LA2230407\"","v":"LA2230407"}]
[{"$f":"MID(B36,1,8)","v":"[PE42-1]"},"[PE42-1] Higher education",null,null,null,null,null,null,null,"A33","Other amphibians (other Amphibia)",null,"[A33] Other amphibians (other Amphibia)",null,null,null,null,null,null," ",null,null,null,null,null,null,null,null,null,null,null,null,null,null,null,null,null,null,null,null,null,null,null,null,null,null,null,null,null,null,null,null,null,null,null,null,null,null,null,null,null,null,null,null,null,null,null,null,null,null,null,null,null,null,null,null,null,null,null,null,null,null,null,null,null,null,null,null,null,null,null,null,null,null,null,null,{"$f":"\"LA1230408\"","v":"LA1230408"}]
[{"$f":"MID(B37,1,8)","v":"[PE42-2]"},"[PE42-2] Training for the acquisition, maintenance or improvement of vocational skills",null,null,null,null,null,null,null,"A34","Zebra fish (Danio rerio)",null,"[A34] Zebra fish (Danio rerio)",null,null,null,null,null,null," ",null,null,null,null,null,null,null,null,null,null,null,null,null,null,null,null,null,null,null,null,null,null,null,null,null,null,null,null,null,null,null,null,null,null,null,null,null,null,null,null,null,null,null,null,null,null,null,null,null,null,null,null,null,null,null,null,null,null,null,null,null,null,null,null,null,null,null,null,null,null,null,null,null,null,null,null,{"$f":"\"LA1230416\"","v":"LA1230416"}]
[{"$f":"MID(B38,1,6)","v":"[PF43]"},"[PF43] Forensic enquiries",null,null,null,null,null,null,null,"A38","Sea bass (spp. from families e.g. Serranidae, Moronidae)",null,"[A38] Sea bass (spp. from families e.g. Serranidae, Moronidae)",null,null,null,null,null,null," ",null,null,null,null,null,null,null,null,null,null,null,null,null,null,null,null,null,null,null,null,null,null,null,null,null,null,null,null,null,null,null,null,null,null,null,null,null,null,null,null,null,null,null,null,null,null,null,null,null,null,null,null,null,null,null,null,null,null,null,null,null,null,null,null,null,null,null,null,null,null,null,null,null,null,null,null,{"$f":"\"LA1230417\"","v":"LA1230417"}]
["[PG43]","[PG43] Maintenance of colonies of established genetically altered animals, not used in other procedures",null,null,null,null,null,null,null,"A39","Salmon, trout, chars and graylings (Salmonidae)",null,"[A39] Salmon, trout, chars and graylings (Salmonidae)",null,null,null,null,null,null," ",null,null,null,null,null,null,null,null,null,null,null,null,null,null,null,null,null,null,null,null,null,null,null,null,null,null,null,null,null,null,null,null,null,null,null,null,null,null,null,null,null,null,null,null,null,null,null,null,null,null,null,null,null,null,null,null,null,null,null,null,null,null,null,null,null,null,null,null,null,null,null,null,null,null,null,null,{"$f":"\"LA1230418\"","v":"LA1230418"}]
["[PR51]","[PR51] (Regulatory use/ Routine production) Blood based products",null,null,null,null,null,null,null,"A40","Guppy, swordtail, molly, platy (Poeciliidae)",null,"[A40] Guppy, swordtail, molly, platy (Poeciliidae)",null,null,null,null,null,null," ",null,null,null,null,null,null,null,null,null,null,null,null,null,null,null,null,null,null,null,null,null,null,null,null,null,null,null,null,null,null,null,null,null,null,null,null,null,null,null,null,null,null,null,null,null,null,null,null,null,null,null,null,null,null,null,null,null,null,null,null,null,null,null,null,null,null,null,null,null,null,null,null,null,null,null,null,{"$f":"\"LA2230419\"","v":"LA2230419"}]
["[PR52]","[PR52] (Regulatory use/ Routine production) Monoclonal antibodies by ascites method only",null,null,null,null,null,null,null,"A35","Other fish (other Pisces)",null,"[A35] Other fish (other Pisces)",null,null,null,null,null,null," ",null,null,null,null,null,null,null,null,null,null,null,null,null,null,null,null,null,null,null,null,null,null,null,null,null,null,null,null,null,null,null,null,null,null,null,null,null,null,null,null,null,null,null,null,null,null,null,null,null,null,null,null,null,null,null,null,null,null,null,null,null,null,null,null,null,null,null,null,null,null,null,null,null,null,null,null,{"$f":"\"LA1230439\"","v":"LA1230439"}]
["[PR54]","[PR54] (Regulatory use/ Routine production) Monoclonal and polyclonal antibodies (excluding ascites method)",null,null,null,null,null,null,null,"A36","Cephalopods (Cephalopoda)",null,"[A36] Cephalopods (Cephalopoda)",null,null,null,null,null,null," ",null,null,null,null,null,null,null,null,null,null,null,null,null,null,null,null,null,null,null,null,null,null,null,null,null,null,null,null,null,null,null,null,null,null,null,null,null,null,null,null,null,null,null,null,null,null,null,null,null,null,null,null,null,null,null,null,null,null,null,null,null,null,null,null,null,null,null,null,null,null,null,null,null,null,null,null,{"$f":"\"LA1230440\"","v":"LA1230440"}]
["[PR53]","[PR53] (Regulatory use/ Routine production) Other products",null,null,null,null,null,null,null," ",null,null,null,null,null,null,null,null,null," ",null,null,null,null,null,null,null,null,null,null,null,null,null,null,null,null,null,null,null,null,null,null,null,null,null,null,null,null,null,null,null,null,null,null,null,null,null,null,null,null,null,null,null,null,null,null,null,null,null,null,null,null,null,null,null,null,null,null,null,null,null,null,null,null,null,null,null,null,null,null,null,null,null,null,null,null,{"$f":"\"LA1230441\"","v":"LA1230441"}]
["[PR61]","[PR61] (Regulatory use/ Quality control) Batch safety testing",null,null,null,null,null,null,null," ",null,null,null,null,null,null,null,null,null," ",null,null,null,null,null,null,null,null,null,null,null,null,null,null,null,null,null,null,null,null,null,null,null,null,null,null,null,null,null,null,null,null,null,null,null,null,null,null,null,null,null,null,null,null,null,null,null,null,null,null,null,null,null,null,null,null,null,null,null,null,null,null,null,null,null,null,null,null,null,null,null,null,null,null,null,null,{"$f":"\"LA1230443\"","v":"LA1230443"}]
["[PR62]","[PR62] (Regulatory use/ Quality control) Pyrogenicity testing",null,null,null,null,null,null,null," ",null,null,null,null,null,null,null,null,null," ",null,null,null,null,null,null,null,null,null,null,null,null,null,null,null,null,null,null,null,null,null,null,null,null,null,null,null,null,null,null,null,null,null,null,null,null,null,null,null,null,null,null,null,null,null,null,null,null,null,null,null,null,null,null,null,null,null,null,null,null,null,null,null,null,null,null,null,null,null,null,null,null,null,null,null,null,{"$f":"\"LA1230453\"","v":"LA1230453"}]
["[PR63]","[PR63] (Regulatory use/ Quality control) Batch potency testing",null,null,null,null,null,null,null," ",null,null,null,null,null,null,null,null,null," ",null,null,null,null,null,null,null,null,null,null,null,null,null,null,null,null,null,null,null,null,null,null,null,null,null,null,null,null,null,null,null,null,null,null,null,null,null,null,null,null,null,null,null,null,null,null,null,null,null,null,null,null,null,null,null,null,null,null,null,null,null,null,null,null,null,null,null,null,null,null,null,null,null,null,null,null,{"$f":"\"LA1230454\"","v":"LA1230454"}]
["[PR64]","[PR64] (Regulatory use/ Quality control) Other quality controls",null,null,null,null,null,null,null," ",null,null,null,null,null,null,null,null,null," ",null,null,null,null,null,null,null,null,null,null,null,null,null,null,null,null,null,null,null,null,null,null,null,null,null,null,null,null,null,null,null,null,null,null,null,null,null,null,null,null,null,null,null,null,null,null,null,null,null,null,null,null,null,null,null,null,null,null,null,null,null,null,null,null,null,null,null,null,null,null,null,null,null,null,null,null,"LA2230458"]
["[PR71]","[PR71] (Regulatory use) Other efficacy and tolerance testing",null,null,null,null,null,null,null," ",null,null,null,null,null,null,null,null,null," ",null,null,null,null,null,null,null,null,null,null,null,null,null,null,null,null,null,null,null,null,null,null,null,null,null,null,null,null,null,null,null,null,null,null,null,null,null,null,null,null,null,null,null,null,null,null,null,null,null,null,null,null,null,null,null,null,null,null,null,null,null,null,null,null,null,null,null,null,null,null,null,null,null,null,null,null,{"$f":"\"LA1230460\"","v":"LA1230460"}]
["[PR81]","[PR81] (Regulatory use/Toxicity and../Acute toxicity) LD50, LC50",null,null,null,null,null,null,null," ",null,null,null,null,null,null,null,null,null," ",null,null,null,null,null,null,null,null,null,null,null,null,null,null,null,null,null,null,null,null,null,null,null,null,null,null,null,null,null,null,null,null,null,null,null,null,null,null,null,null,null,null,null,null,null,null,null,null,null,null,null,null,null,null,null,null,null,null,null,null,null,null,null,null,null,null,null,null,null,null,null,null,null,null,null,null,{"$f":"\"LA1230467\"","v":"LA1230467"}]
["[PR82]","[PR82] (Regulatory use/Toxicity and../Acute toxicity) Other lethal methods",null,null,null,null,null,null,null," ",null,null,null,null,null,null,null,null,null," ",null,null,null,null,null,null,null,null,null,null,null,null,null,null,null,null,null,null,null,null,null,null,null,null,null,null,null,null,null,null,null,null,null,null,null,null,null,null,null,null,null,null,null,null,null,null,null,null,null,null,null,null,null,null,null,null,null,null,null,null,null,null,null,null,null,null,null,null,null,null,null,null,null,null,null,null,{"$f":"\"LA2230471\"","v":"LA2230471"}]
["[PR83]","[PR83] (Regulatory use/Toxicity and../Acute toxicity) Non lethal methods",null,null,null,null,null,null,null," ",null,null,null,null,null,null,null,null,null," ",null,null,null,null,null,null,null,null,null,null,null,null,null,null,null,null,null,null,null,null,null,null,null,null,null,null,null,null,null,null,null,null,null,null,null,null,null,null,null,null,null,null,null,null,null,null,null,null,null,null,null,null,null,null,null,null,null,null,null,null,null,null,null,null,null,null,null,null,null,null,null,null,null,null,null,null,{"$f":"\"LA1230472\"","v":"LA1230472"}]
["[PR84]","[PR84] (Regulatory use/Toxicity and..) Skin irritation/corrosion",null,null,null,null,null,null,null," ",null,null,null,null,null,null,null,null,null," ",null,null,null,null,null,null,null,null,null,null,null,null,null,null,null,null,null,null,null,null,null,null,null,null,null,null,null,null,null,null,null,null,null,null,null,null,null,null,null,null,null,null,null,null,null,null,null,null,null,null,null,null,null,null,null,null,null,null,null,null,null,null,null,null,null,null,null,null,null,null,null,null,null,null,null,null,{"$f":"\"LA1230502\"","v":"LA1230502"}]
["[PR85]","[PR85] (Regulatory use/Toxicity and..) Skin sensitisation",null,null,null,null,null,null,null," ",null,null,null,null,null,null,null,null,null," ",null,null,null,null,null,null,null,null,null,null,null,null,null,null,null,null,null,null,null,null,null,null,null,null,null,null,null,null,null,null,null,null,null,null,null,null,null,null,null,null,null,null,null,null,null,null,null,null,null,null,null,null,null,null,null,null,null,null,null,null,null,null,null,null,null,null,null,null,null,null,null,null,null,null,null,null,{"$f":"\"LA1230522\"","v":"LA1230522"}]
["[PR86]","[PR86] (Regulatory use/Toxicity and..) Eye irritation/corrosion",null,null,null,null,null,null,null," ",null,null,null,null,null,null,null,null,null," ",null,null,null,null,null,null,null,null,null,null,null,null,null,null,null,null,null,null,null,null,null,null,null,null,null,null,null,null,null,null,null,null,null,null,null,null,null,null,null,null,null,null,null,null,null,null,null,null,null,null,null,null,null,null,null,null,null,null,null,null,null,null,null,null,null,null,null,null,null,null,null,null,null,null,null,null,{"$f":"\"LA1230524\"","v":"LA1230524"}]
["[PR87]","[PR87] (Regulatory use/Toxicity and../Repeated dose toxicity) 28 days or less",null,null,null,null,null,null,null," ",null,null,null,null,null,null,null,null,null," ",null,null,null,null,null,null,null,null,null,null,null,null,null,null,null,null,null,null,null,null,null,null,null,null,null,null,null,null,null,null,null,null,null,null,null,null,null,null,null,null,null,null,null,null,null,null,null,null,null,null,null,null,null,null,null,null,null,null,null,null,null,null,null,null,null,null,null,null,null,null,null,null,null,null,null,null,{"$f":"\"LA1230542\"","v":"LA1230542"}]
["[PR88]","[PR88] (Regulatory use/Toxicity and../Repeated dose toxicity) 29 - 90 days",null,null,null,null,null,null,null," ",null,null,null,null,null,null,null,null,null," ",null,null,null,null,null,null,null,null,null,null,null,null,null,null,null,null,null,null,null,null,null,null,null,null,null,null,null,null,null,null,null,null,null,null,null,null,null,null,null,null,null,null,null,null,null,null,null,null,null,null,null,null,null,null,null,null,null,null,null,null,null,null,null,null,null,null,null,null,null,null,null,null,null,null,null,null,{"$f":"\"LA1230552\"","v":"LA1230552"}]
["[PR89]","[PR89] (Regulatory use/Toxicity and../Repeated dose toxicity) more than 90 days",null,null,null,null,null,null,null," ",null,null,null,null,null,null,null,null,null," ",null,null,null,null,null,null,null,null,null,null,null,null,null,null,null,null,null,null,null,null,null,null,null,null,null,null,null,null,null,null,null,null,null,null,null,null,null,null,null,null,null,null,null,null,null,null,null,null,null,null,null,null,null,null,null,null,null,null,null,null,null,null,null,null,null,null,null,null,null,null,null,null,null,null,null,null,{"$f":"\"LA1230567\"","v":"LA1230567"}]
["[PR90]","[PR90] (Regulatory use/Toxicity and..) Carcinogenicity",null,null,null,null,null,null,null," ",null,null,null,null,null,null,null,null,null," ",null,null,null,null,null,null,null,null,null,null,null,null,null,null,null,null,null,null,null,null,null,null,null,null,null,null,null,null,null,null,null,null,null,null,null,null,null,null,null,null,null,null,null,null,null,null,null,null,null,null,null,null,null,null,null,null,null,null,null,null,null,null,null,null,null,null,null,null,null,null,null,null,null,null,null,null,{"$f":"\"LA1230568\"","v":"LA1230568"}]
["[PR91]","[PR91] (Regulatory use/Toxicity and..) Genotoxicity",null,null,null,null,null,null,null," ",null,null,null,null,null,null,null,null,null," ",null,null,null,null,null,null,null,null,null,null,null,null,null,null,null,null,null,null,null,null,null,null,null,null,null,null,null,null,null,null,null,null,null,null,null,null,null,null,null,null,null,null,null,null,null,null,null,null,null,null,null,null,null,null,null,null,null,null,null,null,null,null,null,null,null,null,null,null,null,null,null,null,null,null,null,null,{"$f":"\"LA1230595\"","v":"LA1230595"}]
["[PR92]","[PR92] (Regulatory use/Toxicity and..) Reproductive toxicity",null,null,null,null,null,null,null," ",null,null,null,null,null,null,null,null,null," ",null,null,null,null,null,null,null,null,null,null,null,null,null,null,null,null,null,null,null,null,null,null,null,null,null,null,null,null,null,null,null,null,null,null,null,null,null,null,null,null,null,null,null,null,null,null,null,null,null,null,null,null,null,null,null,null,null,null,null,null,null,null,null,null,null,null,null,null,null,null,null,null,null,null,null,null,{"$f":"\"LA1230608\"","v":"LA1230608"}]
["[PR93]","[PR93] (Regulatory use/Toxicity and..) Developmental toxicity",null,null,null,null,null,null,null," ",null,null,null,null,null,null,null,null,null," ",null,null,null,null,null,null,null,null,null,null,null,null,null,null,null,null,null,null,null,null,null,null,null,null,null,null,null,null,null,null,null,null,null,null,null,null,null,null,null,null,null,null,null,null,null,null,null,null,null,null,null,null,null,null,null,null,null,null,null,null,null,null,null,null,null,null,null,null,null,null,null,null,null,null,null,null,{"$f":"\"LA1230618\"","v":"LA1230618"}]
["[PR94]","[PR94] (Regulatory use/Toxicity and..) Neurotoxicity",null,null,null,null,null,null,null," ",null,null,null,null,null,null,null,null,null," ",null,null,null,null,null,null,null,null,null,null,null,null,null,null,null,null,null,null,null,null,null,null,null,null,null,null,null,null,null,null,null,null,null,null,null,null,null,null,null,null,null,null,null,null,null,null,null,null,null,null,null,null,null,null,null,null,null,null,null,null,null,null,null,null,null,null,null,null,null,null,null,null,null,null,null,null,{"$f":"\"LA2230622\"","v":"LA2230622"}]
["[PR95]","[PR95] (Regulatory use/Toxicity and..) Kinetics (pharmacokinetics, toxicokinetics, residue depletion)",null,null,null,null,null,null,null," ",null,null,null,null,null,null,null,null,null," ",null,null,null,null,null,null,null,null,null,null,null,null,null,null,null,null,null,null,null,null,null,null,null,null,null,null,null,null,null,null,null,null,null,null,null,null,null,null,null,null,null,null,null,null,null,null,null,null,null,null,null,null,null,null,null,null,null,null,null,null,null,null,null,null,null,null,null,null,null,null,null,null,null,null,null,null,{"$f":"\"LA1230623\"","v":"LA1230623"}]
["[PR96]","[PR96] (Regulatory use/Toxicity and..) Pharmaco-dynamics (including safety pharmacology)",null,null,null,null,null,null,null," ",null,null,null,null,null,null,null,null,null," ",null,null,null,null,null,null,null,null,null,null,null,null,null,null,null,null,null,null,null,null,null,null,null,null,null,null,null,null,null,null,null,null,null,null,null,null,null,null,null,null,null,null,null,null,null,null,null,null,null,null,null,null,null,null,null,null,null,null,null,null,null,null,null,null,null,null,null,null,null,null,null,null,null,null,null,null,{"$f":"\"LA1230625\"","v":"LA1230625"}]
["[PR97]","[PR97] (Regulatory use/Toxicity and..) Phototoxicity",null,null,null,null,null,null,null," ",null,null,null,null,null,null,null,null,null," ",null,null,null,null,null,null,null,null,null,null,null,null,null,null,null,null,null,null,null,null,null,null,null,null,null,null,null,null,null,null,null,null,null,null,null,null,null,null,null,null,null,null,null,null,null,null,null,null,null,null,null,null,null,null,null,null,null,null,null,null,null,null,null,null,null,null,null,null,null,null,null,null,null,null,null,null,{"$f":"\"LA1230632\"","v":"LA1230632"}]
["[PR98]","[PR98] (Regulatory use/Toxicity and../Ecotoxicity) Acute toxicity (ecotoxicity)",null,null,null,null,null,null,null," ",null,null,null,null,null,null,null,null,null," ",null,null,null,null,null,null,null,null,null,null,null,null,null,null,null,null,null,null,null,null,null,null,null,null,null,null,null,null,null,null,null,null,null,null,null,null,null,null,null,null,null,null,null,null,null,null,null,null,null,null,null,null,null,null,null,null,null,null,null,null,null,null,null,null,null,null,null,null,null,null,null,null,null,null,null,null,{"$f":"\"LA1230633\"","v":"LA1230633"}]
["[PR99]","[PR99] (Regulatory use/Toxicity and../Ecotoxicity) Chronic toxicity (ecotoxicity)",null,null,null,null,null,null,null," ",null,null,null,null,null,null,null,null,null," ",null,null,null,null,null,null,null,null,null,null,null,null,null,null,null,null,null,null,null,null,null,null,null,null,null,null,null,null,null,null,null,null,null,null,null,null,null,null,null,null,null,null,null,null,null,null,null,null,null,null,null,null,null,null,null,null,null,null,null,null,null,null,null,null,null,null,null,null,null,null,null,null,null,null,null,null,{"$f":"\"LA1230634\"","v":"LA1230634"}]
[{"$f":"MID(B68,1,7)","v":"[PR100]"},"[PR100] (Regulatory use/Toxicity and../Ecotoxicity) Reproductive toxicity (ecotoxicity)",null,null,null,null,null,null,null," ",null,null,null,null,null,null,null,null,null," ",null,null,null,null,null,null,null,null,null,null,null,null,null,null,null,null,null,null,null,null,null,null,null,null,null,null,null,null,null,null,null,null,null,null,null,null,null,null,null,null,null,null,null,null,null,null,null,null,null,null,null,null,null,null,null,null,null,null,null,null,null,null,null,null,null,null,null,null,null,null,null,null,null,null,null,null,{"$f":"\"LA1230635\"","v":"LA1230635"}]
[{"$f":"MID(B69,1,7)","v":"[PR101]"},"[PR101] (Regulatory use/Toxicity and../Ecotoxicity) Endocrine activity (ecotoxicity)",null,null,null,null,null,null,null," ",null,null,null,null,null,null,null,null,null," ",null,null,null,null,null,null,null,null,null,null,null,null,null,null,null,null,null,null,null,null,null,null,null,null,null,null,null,null,null,null,null,null,null,null,null,null,null,null,null,null,null,null,null,null,null,null,null,null,null,null,null,null,null,null,null,null,null,null,null,null,null,null,null,null,null,null,null,null,null,null,null,null,null,null,null,null,{"$f":"\"LA1230637\"","v":"LA1230637"}]
["[PR102]","[PR102] (Regulatory use/Toxicity and../Ecotoxicity) Bioaccumulation (ecotoxicity)",null,null,null,null,null,null,null," ",null,null,null,null,null,null,null,null,null," ",null,null,null,null,null,null,null,null,null,null,null,null,null,null,null,null,null,null,null,null,null,null,null,null,null,null,null,null,null,null,null,null,null,null,null,null,null,null,null,null,null,null,null,null,null,null,null,null,null,null,null,null,null,null,null,null,null,null,null,null,null,null,null,null,null,null,null,null,null,null,null,null,null,null,null,null,{"$f":"\"LA1230638\"","v":"LA1230638"}]
["[PR103]","[PR103] (Regulatory use/Toxicity and../Ecotoxicity) Other ecotoxicity",null,null,null,null,null,null,null," ",null,null,null,null,null,null,null,null,null," ",null,null,null,null,null,null,null,null,null,null,null,null,null,null,null,null,null,null,null,null,null,null,null,null,null,null,null,null,null,null,null,null,null,null,null,null,null,null,null,null,null,null,null,null,null,null,null,null,null,null,null,null,null,null,null,null,null,null,null,null,null,null,null,null,null,null,null,null,null,null,null,null,null,null,null,null,"LA2230640"]
["[PR104]","[PR104] (Regulatory use/Toxicity and..) Safety testing in food and feed area",null,null,null,null,null,null,null," ",null,null,null,null,null,null,null,null,null," ",null,null,null,null,null,null,null,null,null,null,null,null,null,null,null,null,null,null,null,null,null,null,null,null,null,null,null,null,null,null,null,null,null,null,null,null,null,null,null,null,null,null,null,null,null,null,null,null,null,null,null,null,null,null,null,null,null,null,null,null,null,null,null,null,null,null,null,null,null,null,null,null,null,null,null,null,"LA2230641"]
["[PR105]","[PR105] (Regulatory use/Toxicity and..) Target animal safety",null,null,null,null,null,null,null," ",null,null,null,null,null,null,null,null,null," ",null,null,null,null,null,null,null,null,null,null,null,null,null,null,null,null,null,null,null,null,null,null,null,null,null,null,null,null,null,null,null,null,null,null,null,null,null,null,null,null,null,null,null,null,null,null,null,null,null,null,null,null,null,null,null,null,null,null,null,null,null,null,null,null,null,null,null,null,null,null,null,null,null,null,null,null,"LA2230642"]
["[PR107]","[PR107] (Regulatory use/Toxicity and..) Combined end-points",null,null,null,null,null,null,null," ",null,null,null,null,null,null,null,null,null," ",null,null,null,null,null,null,null,null,null,null,null,null,null,null,null,null,null,null,null,null,null,null,null,null,null,null,null,null,null,null,null,null,null,null,null,null,null,null,null,null,null,null,null,null,null,null,null,null,null,null,null,null,null,null,null,null,null,null,null,null,null,null,null,null,null,null,null,null,null,null,null,null,null,null,null,null,"LA2230643"]
["[PR106]","[PR106] (Regulatory use/Toxicity and..) Other toxicity or safety testing",null,null,null,null,null,null,null," ",null,null,null,null,null,null,null,null,null," ",null,null,null,null,null,null,null,null,null,null,null,null,null,null,null,null,null,null,null,null,null,null,null,null,null,null,null,null,null,null,null,null,null,null,null,null,null,null,null,null,null,null,null,null,null,null,null,null,null,null,null,null,null,null,null,null,null,null,null,null,null,null,null,null,null,null,null,null,null,null,null,null,null,null,null,null,"LA2230645"]
[null,null,null,null,null,null,null,null,null," ",null,null,null,null,null,null,null,null,null," ",null,null,null,null,null,null,null,null,null,null,null,null,null,null,null,null,null,null,null,null,null,null,null,null,null,null,null,null,null,null,null,null,null,null,null,null,null,null,null,null,null,null,null,null,null,null,null,null,null,null,null,null,null,null,null,null,null,null,null,null,null,null,null,null,null,null,null,null,null,null,null,null,null,null,null,null,"LA2230646"]
[null,null,null,null,null,null,null,null,null," ",null,null,null,null,null,null,null,null,null,null,null,null,null,null,null,null,null,null,null,null,null,null,null,null,null,null,null,null,null,null,null,null,null,null,null,null,null,null,null,null,null,null,null,null,null,null,null,null,null,null,null,null,null,null,null,null,null,null,null,null,null,null,null,null,null,null,null,null,null,null,null,null,null,null,null,null,null,null,null,null,null,null,null,null,null,null,"LA2230647"]
[null,null,null,null,null,null,null,null,null," ",null,null,null,null,null,null,null,null,null,null,null,null,null,null,null,null,null,null,null,null,null,null,null,null,null,null,null,null,null,null,null,null,null,null,null,null,null,null,null,null,null,null,null,null,null,null,null,null,null,null,null,null,null,null,null,null,null,null,null,null,null,null,null,null,null,null,null,null,null,null,null,null,null,null,null,null,null,null,null,null,null,null,null,null,null,null,"LA2230648"]
[null,null,null,null,null,null,null,null,null," ",null,null,null,null,null,null,null,null,null,null,null,null,null,null,null,null,null,null,null,null,null,null,null,null,null,null,null,null,null,null,null,null,null,null,null,null,null,null,null,null,null,null,null,null,null,null,null,null,null,null,null,null,null,null,null,null,null,null,null,null,null,null,null,null,null,null,null,null,null,null,null,null,null,null,null,null,null,null,null,null,null,null,null,null,null,null,"LA2230650"]
[null,null,null,null,null,null,null,null,null,null,null,null,null,null,null,null,null,null,null,null,null,null,null,null,null,null,null,null,null,null,null,null,null,null,null,null,null,null,null,null,null,null,null,null,null,null,null,null,null,null,null,null,null,null,null,null,null,null,null,null,null,null,null,null,null,null,null,null,null,null,null,null,null,null,null,null,null,null,null,null,null,null,null,null,null,null,null,null,null,null,null,null,null,null,null,null,"LA2230651"]
[null,null,null,null,null,null,null,null,null,null,null,null,null,null,null,null,null,null,null,null,null,null,null,null,null,null,null,null,null,null,null,null,null,null,null,null,null,null,null,null,null,null,null,null,null,null,null,null,null,null,null,null,null,null,null,null,null,null,null,null,null,null,null,null,null,null,null,null,null,null,null,null,null,null,null,null,null,null,null,null,null,null,null,null,null,null,null,null,null,null,null,null,null,null,null,null,"LA2230652"]
[null,null,null,null,null,null,null,null,null,null,null,null,null,null,null,null,null,null,null,null,null,null,null,null,null,null,null,null,null,null,null,null,null,null,null,null,null,null,null,null,null,null,null,null,null,null,null,null,null,null,null,null,null,null,null,null,null,null,null,null,null,null,null,null,null,null,null,null,null,null,null,null,null,null,null,null,null,null,null,null,null,null,null,null,null,null,null,null,null,null,null,null,null,null,null,null,"LA1230653"]
[null,null,null,null,null,null,null,null,null,null,null,null,null,null,null,null,null,null,null,null,null,null,null,null,null,null,null,null,null,null,null,null,null,null,null,null,null,null,null,null,null,null,null,null,null,null,null,null,null,null,null,null,null,null,null,null,null,null,null,null,null,null,null,null,null,null,null,null,null,null,null,null,null,null,null,null,null,null,null,null,null,null,null,null,null,null,null,null,null,null,null,null,null,null,null,null,"LA2230654"]
[null,null,null,null,null,null,null,null,null,null,null,null,null,null,null,null,null,null,null,null,null,null,null,null,null,null,null,null,null,null,null,null,null,null,null,null,null,null,null,null,null,null,null,null,null,null,null,null,null,null,null,null,null,null,null,null,null,null,null,null,null,null,null,null,null,null,null,null,null,null,null,null,null,null,null,null,null,null,null,null,null,null,null,null,null,null,null,null,null,null,null,null,null,null,null,null,"LA1230655"]
[null,null,null,null,null,null,null,null,null,null,null,null,null,null,null,null,null,null,null,null,null,null,null,null,null,null,null,null,null,null,null,null,null,null,null,null,null,null,null,null,null,null,null,null,null,null,null,null,null,null,null,null,null,null,null,null,null,null,null,null,null,null,null,null,null,null,null,null,null,null,null,null,null,null,null,null,null,null,null,null,null,null,null,null,null,null,null,null,null,null,null,null,null,null,null,null,"LA1230656"]
[null,null,null,null,null,null,null,null,null,null,null,null,null,null,null,null,null,null,null,null,null,null,null,null,null,null,null,null,null,null,null,null,null,null,null,null,null,null,null,null,null,null,null,null,null,null,null,null,null,null,null,null,null,null,null,null,null,null,null,null,null,null,null,null,null,null,null,null,null,null,null,null,null,null,null,null,null,null,null,null,null,null,null,null,null,null,null,null,null,null,null,null,null,null,null,null,"LA1230657"]
[null,null,null,null,null,null,null,null,null,null,null,null,null,null,null,null,null,null,null,null,null,null,null,null,null,null,null,null,null,null,null,null,null,null,null,null,null,null,null,null,null,null,null,null,null,null,null,null,null,null,null,null,null,null,null,null,null,null,null,null,null,null,null,null,null,null,null,null,null,null,null,null,null,null,null,null,null,null,null,null,null,null,null,null,null,null,null,null,null,null,null,null,null,null,null,null,"LA1230658"]
[null,null,null,null,null,null,null,null,null,null,null,null,null,null,null,null,null,null,null,null,null,null,null,null,null,null,null,null,null,null,null,null,null,null,null,null,null,null,null,null,null,null,null,null,null,null,null,null,null,null,null,null,null,null,null,null,null,null,null,null,null,null,null,null,null,null,null,null,null,null,null,null,null,null,null,null,null,null,null,null,null,null,null,null,null,null,null,null,null,null,null,null,null,null,null,null,"LA1230659"]
[null,null,null,null,null,null,null,null,null,null,null,null,null,null,null,null,null,null,null,null,null,null,null,null,null,null,null,null,null,null,null,null,null,null,null,null,null,null,null,null,null,null,null,null,null,null,null,null,null,null,null,null,null,null,null,null,null,null,null,null,null,null,null,null,null,null,null,null,null,null,null,null,null,null,null,null,null,null,null,null,null,null,null,null,null,null,null,null,null,null,null,null,null,null,null,null,"LA1230660"]
[null,null,null,null,null,null,null,null,null,null,null,null,null,null,null,null,null,null,null,null,null,null,null,null,null,null,null,null,null,null,null,null,null,null,null,null,null,null,null,null,null,null,null,null,null,null,null,null,null,null,null,null,null,null,null,null,null,null,null,null,null,null,null,null,null,null,null,null,null,null,null,null,null,null,null,null,null,null,null,null,null,null,null,null,null,null,null,null,null,null,null,null,null,null,null,null,"LA2230661"]
[null,null,null,null,null,null,null,null,null,null,null,null,null,null,null,null,null,null,null,null,null,null,null,null,null,null,null,null,null,null,null,null,null,null,null,null,null,null,null,null,null,null,null,null,null,null,null,null,null,null,null,null,null,null,null,null,null,null,null,null,null,null,null,null,null,null,null,null,null,null,null,null,null,null,null,null,null,null,null,null,null,null,null,null,null,null,null,null,null,null,null,null,null,null,null,null,"LA1230662"]
[null,null,null,null,null,null,null,null,null,null,null,null,null,null,null,null,null,null,null,null,null,null,null,null,null,null,null,null,null,null,null,null,null,null,null,null,null,null,null,null,null,null,null,null,null,null,null,null,null,null,null,null,null,null,null,null,null,null,null,null,null,null,null,null,null,null,null,null,null,null,null,null,null,null,null,null,null,null,null,null,null,null,null,null,null,null,null,null,null,null,null,null,null,null,null,null,"LA1230663"]
[null,null,null,null,null,null,null,null,null,null,null,null,null,null,null,null,null,null,null,null,null,null,null,null,null,null,null,null,null,null,null,null,null,null,null,null,null,null,null,null,null,null,null,null,null,null,null,null,null,null,null,null,null,null,null,null,null,null,null,null,null,null,null,null,null,null,null,null,null,null,null,null,null,null,null,null,null,null,null,null,null,null,null,null,null,null,null,null,null,null,null,null,null,null,null,null,"LA1230664"]
[null,null,null,null,null,null,null,null,null,null,null,null,null,null,null,null,null,null,null,null,null,null,null,null,null,null,null,null,null,null,null,null,null,null,null,null,null,null,null,null,null,null,null,null,null,null,null,null,null,null,null,null,null,null,null,null,null,null,null,null,null,null,null,null,null,null,null,null,null,null,null,null,null,null,null,null,null,null,null,null,null,null,null,null,null,null,null,null,null,null,null,null,null,null,null,null,"LA2230665"]
[null,null,null,null,null,null,null,null,null,null,null,null,null,null,null,null,null,null,null,null,null,null,null,null,null,null,null,null,null,null,null,null,null,null,null,null,null,null,null,null,null,null,null,null,null,null,null,null,null,null,null,null,null,null,null,null,null,null,null,null,null,null,null,null,null,null,null,null,null,null,null,null,null,null,null,null,null,null,null,null,null,null,null,null,null,null,null,null,null,null,null,null,null,null,null,null,"LA1230666"]
[null,null,null,null,null,null,null,null,null,null,null,null,null,null,null,null,null,null,null,null,null,null,null,null,null,null,null,null,null,null,null,null,null,null,null,null,null,null,null,null,null,null,null,null,null,null,null,null,null,null,null,null,null,null,null,null,null,null,null,null,null,null,null,null,null,null,null,null,null,null,null,null,null,null,null,null,null,null,null,null,null,null,null,null,null,null,null,null,null,null,null,null,null,null,null,null,"LA1230667"]

{"sheet":"Validation","index":3,"n_rows":8,"n_cols":2,"rows_kept":8,"cut":false,"hidden":false,"merged":[[2,1,5,6],[7,1,10,6]]}
[]
[]
[null,"If you want to check your data inside \"Animal use details\", click [Validate], then fix these errors (if any) and click again [Validate]."]
[]
[]
[]
[]
[null,"Click [Clean Validation], if you want to clean the red colour in your cells caused by validation errors."]